[Event "GER-ch Blitz 2019"]
[Site "Magdeburg"]
[Date "2019.05.25"]
[Round "28.7"]
[White "Schneider, Ilja"]
[Black "Svane, Frederik"]
[Result "1-0"]
[ECO "A45"]
[WhiteElo "2494"]
[BlackElo "2342"]
[Annotator "ChessBase"]
[PlyCount "127"]
[EventDate "2019.05.25"]
[EventType "tourn"]
[EventCountry "GER"]
[Tiebreak "Number of wins+Number of black wins"]
[SourceTitle "playchess.com"]
[Source "ChessBase"]
[SourceQuality "1"]
[TimeControl "180+2"]

1. d4 {[%emt 0:00:00]} Nf6 {[%emt 0:00:00]} 2. Bg5 {[%emt 0:00:01]} c5 {
[%emt 0:00:01]} 3. Bxf6 {[%emt 0:00:01]} exf6 {[%emt 0:00:02]} 4. c3 {[%emt 0:
00:01]} d5 {[%emt 0:00:04]} 5. e3 {[%emt 0:00:01]} Nc6 {[%emt 0:00:01]} 6. Nd2
{[%emt 0:00:01]} cxd4 {[%emt 0:00:02]} 7. exd4 {[%emt 0:00:01]} Bd6 {[%emt 0:
00:01]} 8. Ngf3 {[%emt 0:00:03]} O-O {[%emt 0:00:03]} 9. Be2 {[%emt 0:00:01]}
Re8 {[%emt 0:00:08]} 10. O-O {[%emt 0:00:02]} Bg4 {[%emt 0:00:05]} 11. h3 {
[%emt 0:00:03]} Bh5 {[%emt 0:00:02]} 12. Re1 {[%emt 0:00:01]} Qd7 {[%emt 0:00:
01]} 13. Qb3 {[%emt 0:00:04]} Re7 {[%emt 0:00:14]} 14. Nf1 {[%emt 0:00:02]}
Rae8 {[%emt 0:00:03]} 15. Ne3 {[%emt 0:00:01]} Bf4 {[%emt 0:00:34]} 16. Qxd5 {
[%emt 0:00:03]} Bxe3 {[%emt 0:00:36]} 17. Qxh5 {[%emt 0:00:09]} Bh6 {[%emt 0:
00:07]} 18. Bb5 {[%emt 0:00:05]} a6 {[%emt 0:00:03]} 19. Bxc6 {[%emt 0:00:03]}
Qxc6 {[%emt 0:00:01]} 20. Rxe7 {[%emt 0:00:01]} Rxe7 {[%emt 0:00:02]} 21. Re1 {
[%emt 0:00:02]} Rxe1+ {[%emt 0:00:01]} 22. Nxe1 {[%emt 0:00:01]} Qe6 {[%emt 0:
00:01]} 23. Nf3 {[%emt 0:00:15]} Qxa2 {[%emt 0:00:01]} 24. Qc5 {[%emt 0:00:08]}
g6 {[%emt 0:00:12]} 25. d5 {[%emt 0:01:17]} Bf8 {[%emt 0:00:02]} 26. Qd4 {
[%emt 0:00:16]} Qxb2 {[%emt 0:00:02]} 27. d6 {[%emt 0:00:05]} Bxd6 {[%emt 0:00:
01]} 28. Qxd6 {[%emt 0:00:01]} Qxc3 {[%emt 0:00:01]} 29. Qb8+ {[%emt 0:00:03]}
Kg7 {[%emt 0:00:01]} 30. Qxb7 {[%emt 0:00:01]} a5 {[%emt 0:00:01]} 31. Qa7 {
[%emt 0:00:09]} Qc1+ {[%emt 0:00:19]} 32. Kh2 {[%emt 0:00:02]} Qf4+ {[%emt 0:
00:02]} 33. Kh1 {[%emt 0:00:01]} a4 {[%emt 0:00:12]} 34. Qc5 {[%emt 0:00:06]}
h5 {[%emt 0:00:23]} 35. Ne1 {[%emt 0:00:08]} a3 {[%emt 0:00:29]} 36. Qxa3 {
[%emt 0:00:08]} Qxf2 {[%emt 0:00:01]} 37. Nf3 {[%emt 0:00:02]} Qf1+ {[%emt 0:
00:01]} 38. Kh2 {[%emt 0:00:01]} Qc4 {[%emt 0:00:01]} 39. Qd6 {[%emt 0:00:01]}
Qe4 {[%emt 0:00:02]} 40. Nd2 {[%emt 0:00:02]} Qe3 {[%emt 0:00:03]} 41. Nc4 {
[%emt 0:00:01]} Qe4 {[%emt 0:00:02]} 42. Nb6 {[%emt 0:00:00]} Qe3 {[%emt 0:00:
08]} 43. Qxf6+ {[%emt 0:00:02]} Kxf6 {[%emt 0:00:02]} 44. Nd5+ {[%emt 0:00:00]}
Ke5 {[%emt 0:00:01]} 45. Nxe3 {[%emt 0:00:01]} f5 {[%emt 0:00:02]} 46. Kg1 {
[%emt 0:00:08]} g5 {[%emt 0:00:01]} 47. Kf2 {[%emt 0:00:01]} f4 {[%emt 0:00:06]
} 48. Nc4+ {[%emt 0:00:04]} Kf5 {[%emt 0:00:01]} 49. Ke2 {[%emt 0:00:27]} Ke4 {
[%emt 0:00:03]} 50. Nd6+ {[%emt 0:00:01]} Ke5 {[%emt 0:00:01]} 51. Ne8 {
[%emt 0:00:06]} Ke4 {[%emt 0:00:04]} 52. Ng7 {[%emt 0:00:03]} h4 {[%emt 0:00:
02]} 53. Kf2 {[%emt 0:00:05]} Ke5 {[%emt 0:00:01]} 54. Ne8 {[%emt 0:00:02]} Ke4
{[%emt 0:00:02]} 55. Nd6+ {[%emt 0:00:03]} Ke5 {[%emt 0:00:01]} 56. Nc4+ {
[%emt 0:00:02]} Ke4 {[%emt 0:00:01]} 57. Nd2+ {[%emt 0:00:01]} Kf5 {[%emt 0:00:
05]} 58. Kf3 {[%emt 0:00:03]} Ke5 {[%emt 0:00:02]} 59. Kg4 {[%emt 0:00:02]} Kd4
{[%emt 0:00:01]} 60. Kxg5 {[%emt 0:00:01]} Ke3 {[%emt 0:00:01]} 61. Nf3 {
[%emt 0:00:01]} Kf2 {[%emt 0:00:01]} 62. Kxf4 {[%emt 0:00:03]} Kxg2 {[%emt 0:
00:01]} 63. Kg4 {[%emt 0:00:01]} Kf2 {[%emt 0:00:02]} 64. Nxh4 {[%emt 0:00:01]}
1-0

[Event "GER-ch Blitz 2019"]
[Site "Magdeburg"]
[Date "2019.05.25"]
[Round "28.8"]
[White "Heidrich, Manfred"]
[Black "Krause, Benedict"]
[Result "1/2-1/2"]
[ECO "B22"]
[WhiteElo "2351"]
[BlackElo "2434"]
[Annotator "NA"]
[PlyCount "31"]
[EventDate "2019.05.25"]
[EventType "tourn"]
[EventCountry "GER"]
[Tiebreak "Number of wins+Number of black wins"]
[SourceTitle "playchess.com"]
[Source "ChessBase"]
[SourceQuality "1"]
[TimeControl "180+2"]

1. e4 {[%emt 0:00:00]} c5 {[%emt 0:00:00]} 2. c3 {[%emt 0:00:00]} d5 {[%emt 0:
00:00]} 3. exd5 {[%emt 0:00:00]} Qxd5 {[%emt 0:00:00]} 4. d4 {[%emt 0:00:00]}
e6 {[%emt 0:00:01]} 5. Nf3 {[%emt 0:00:01]} Nf6 {[%emt 0:00:01]} 6. Be2 {
[%emt 0:00:03]} Nc6 {[%emt 0:00:11]} 7. dxc5 {[%emt 0:00:01]} Qxd1+ {[%emt 0:
00:11]} 8. Bxd1 {[%emt 0:00:01]} Bxc5 {[%emt 0:00:04]} 9. Nbd2 {[%emt 0:00:02]}
a6 {[%emt 0:00:15]} 10. Bc2 {[%emt 0:00:08]} Ke7 {[%emt 0:00:13]} 11. Ne4 {
[%emt 0:00:22]} Nxe4 {[%emt 0:00:04]} 12. Bxe4 {[%emt 0:00:01]} Bd7 {[%emt 0:
00:00]} 13. Ke2 {[%emt 0:00:01]} h6 {[%emt 0:00:09]} 14. Be3 {[%emt 0:00:06]}
Bxe3 {[%emt 0:00:02]} 15. Kxe3 {[%emt 0:00:01]} Rhd8 {[%emt 0:00:01]} 16. Rhd1
1/2-1/2

[Event "GER-ch Blitz 2019"]
[Site "Magdeburg"]
[Date "2019.05.25"]
[Round "28.9"]
[White "Hebbinghaus, Holger"]
[Black "Kirchner, Thomas"]
[Result "0-1"]
[ECO "C47"]
[WhiteElo "2310"]
[BlackElo "2311"]
[Annotator "NA"]
[PlyCount "82"]
[EventDate "2019.05.25"]
[EventType "tourn"]
[EventCountry "GER"]
[Tiebreak "Number of wins+Number of black wins"]
[SourceTitle "playchess.com"]
[Source "ChessBase"]
[SourceQuality "1"]
[TimeControl "180+2"]

1. e4 {[%emt 0:00:00]} e5 {[%emt 0:00:00]} 2. Nf3 {[%emt 0:00:00]} Nc6 {
[%emt 0:00:00]} 3. Nc3 {[%emt 0:00:00]} Nf6 {[%emt 0:00:00]} 4. d4 {[%emt 0:00:
01]} exd4 {[%emt 0:00:00]} 5. Nxd4 {[%emt 0:00:01]} Bb4 {[%emt 0:00:01]} 6.
Nxc6 bxc6 7. Bd3 {[%emt 0:00:02]} d5 {[%emt 0:00:01]} 8. exd5 {[%emt 0:00:01]}
cxd5 {[%emt 0:00:00]} 9. O-O {[%emt 0:00:02]} O-O {[%emt 0:00:02]} 10. h3 {
[%emt 0:00:03]} c6 {[%emt 0:00:01]} 11. Qf3 {[%emt 0:00:04]} h6 {[%emt 0:00:03]
} 12. Bf4 {[%emt 0:00:05]} Bd6 {[%emt 0:00:03]} 13. Ne2 {[%emt 0:00:13]} Rb8 {
[%emt 0:00:01]} 14. b3 {[%emt 0:00:01]} a5 {[%emt 0:00:05]} 15. Nd4 {[%emt 0:
00:28]} Bxf4 {[%emt 0:00:25]} 16. Qxf4 {[%emt 0:00:01]} Bd7 {[%emt 0:00:01]}
17. Rfe1 {[%emt 0:00:12]} c5 {[%emt 0:00:02]} 18. Nf5 {[%emt 0:00:25]} Bxf5 {
[%emt 0:00:25]} 19. Qxf5 {[%emt 0:00:06]} Qc8 {[%emt 0:00:13]} 20. Re7 {
[%emt 0:00:33]} c4 {[%emt 0:00:09]} 21. Qxc8 {[%emt 0:00:04]} Rfxc8 {[%emt 0:
00:01]} 22. Bf1 {[%emt 0:00:37]} Kf8 {[%emt 0:00:06]} 23. Ra7 {[%emt 0:00:08]}
Rc5 {[%emt 0:00:02]} 24. Re1 {[%emt 0:00:09]} Re8 {[%emt 0:00:10]} 25. Rxe8+ {
[%emt 0:00:06]} Kxe8 26. a3 {[%emt 0:00:03]} Ne4 {[%emt 0:00:20]} 27. b4 {
[%emt 0:00:03]} axb4 {[%emt 0:00:01]} 28. axb4 {[%emt 0:00:01]} Rb5 {[%emt 0:
00:01]} 29. Ra5 {[%emt 0:00:05]} Rxa5 {[%emt 0:00:14]} 30. bxa5 {[%emt 0:00:01]
} Kd7 {[%emt 0:00:08]} 31. f3 {[%emt 0:00:01]} Ng3 {[%emt 0:00:22]} 32. Kf2 {
[%emt 0:00:04]} Nxf1 {[%emt 0:00:05]} 33. Kxf1 {[%emt 0:00:01]} Kc6 {[%emt 0:
00:01]} 34. Ke2 d4 {[%emt 0:00:04]} 35. f4 {[%emt 0:00:04]} Kb5 {[%emt 0:00:04]
} 36. Kf3 {[%emt 0:00:01]} Kxa5 37. Ke4 {[%emt 0:00:00]} d3 {[%emt 0:00:07]}
38. cxd3 {[%emt 0:00:01]} c3 {[%emt 0:00:02]} 39. Ke3 {[%emt 0:00:02]} Kb4 {
[%emt 0:00:03]} 40. d4 {[%emt 0:00:07]} Kb3 {[%emt 0:00:06]} 41. d5 {[%emt 0:
00:05]} c2 {[%emt 0:00:02]} 0-1

[Event "GER-ch Blitz 2019"]
[Site "Magdeburg"]
[Date "2019.05.25"]
[Round "28.10"]
[White "Kopylov, Michael"]
[Black "Barzen, Pascal"]
[Result "1-0"]
[ECO "A40"]
[WhiteElo "2413"]
[BlackElo "2292"]
[Annotator "NA"]
[PlyCount "77"]
[EventDate "2019.05.25"]
[EventType "tourn"]
[EventCountry "GER"]
[Tiebreak "Number of wins+Number of black wins"]
[SourceTitle "playchess.com"]
[Source "ChessBase"]
[SourceQuality "1"]
[TimeControl "180+2"]

1. d4 {[%emt 0:00:00]} Nf6 {[%emt 0:00:00]} 2. c4 {[%emt 0:00:00]} e6 {[%emt 0:
00:00]} 3. g3 {[%emt 0:00:01]} Bb4+ {[%emt 0:00:01]} 4. Nd2 {[%emt 0:00:00]} d5
{[%emt 0:00:01]} 5. Bg2 {[%emt 0:00:02]} O-O {[%emt 0:00:02]} 6. Ngf3 {[%emt 0:
00:00]} dxc4 {[%emt 0:00:03]} 7. Qc2 {[%emt 0:00:01]} c5 {[%emt 0:00:11]} 8.
dxc5 {[%emt 0:00:03]} Bxc5 {[%emt 0:00:02]} 9. O-O {[%emt 0:00:06]} Nc6 {
[%emt 0:00:11]} 10. Nxc4 {[%emt 0:00:01]} Qe7 {[%emt 0:00:08]} 11. Nfe5 {
[%emt 0:00:04]} Nb4 {[%emt 0:00:19]} 12. Qb3 {[%emt 0:00:04]} Nbd5 {[%emt 0:00:
02]} 13. Nd3 {[%emt 0:00:17]} b6 {[%emt 0:00:18]} 14. e4 {[%emt 0:00:14]} Nc7 {
[%emt 0:00:05]} 15. e5 {[%emt 0:00:03]} Nfd5 {[%emt 0:00:01]} 16. Nxc5 {
[%emt 0:00:13]} Qxc5 {[%emt 0:00:02]} 17. Be3 {[%emt 0:00:02]} Nxe3 {[%emt 0:
00:03]} 18. Nxe3 {[%emt 0:00:05]} Qxe5 {[%emt 0:00:14]} 19. Bxa8 {[%emt 0:00:
04]} Nxa8 {[%emt 0:00:01]} 20. Nc4 {[%emt 0:00:11]} Qh5 {[%emt 0:00:11]} 21.
Nd6 {[%emt 0:00:07]} Bd7 {[%emt 0:00:05]} 22. Rac1 {[%emt 0:00:04]} b5 {
[%emt 0:00:12]} 23. Qa3 {[%emt 0:00:16]} e5 {[%emt 0:00:12]} 24. Rfd1 {[%emt 0:
00:13]} Bg4 {[%emt 0:00:13]} 25. Rd3 {[%emt 0:00:16]} Nb6 {[%emt 0:00:11]} 26.
Qxa7 {[%emt 0:00:10]} Nc4 {[%emt 0:00:01]} 27. Nxc4 {[%emt 0:00:14]} bxc4 {
[%emt 0:00:01]} 28. Re3 {[%emt 0:00:06]} e4 {[%emt 0:00:08]} 29. Rxe4 {[%emt 0:
00:16]} Bf3 {[%emt 0:00:01]} 30. Re3 {[%emt 0:00:06]} Ba8 {[%emt 0:00:07]} 31.
Qd7 {[%emt 0:00:18]} g6 {[%emt 0:00:14]} 32. Rxc4 {[%emt 0:00:03]} h6 33. Rc8 {
[%emt 0:00:03]} Bd5 {[%emt 0:00:37]} 34. Rxf8+ Kxf8 {[%emt 0:00:01]} 35. Qe8+ {
[%emt 0:00:03]} Kg7 {[%emt 0:00:01]} 36. Qe5+ {[%emt 0:00:01]} Qxe5 {[%emt 0:
00:01]} 37. Rxe5 {[%emt 0:00:00]} Bxa2 38. f4 {[%emt 0:00:04]} Kf6 {[%emt 0:00:
01]} 39. Kf2 {[%emt 0:00:01]} 1-0

[Event "GER-ch Blitz 2019"]
[Site "Magdeburg"]
[Date "2019.05.25"]
[Round "28.11"]
[White "Heistermann, Till"]
[Black "Ehmann, Thilo"]
[Result "1/2-1/2"]
[ECO "A34"]
[WhiteElo "2181"]
[BlackElo "2291"]
[Annotator "NA"]
[PlyCount "246"]
[EventDate "2019.05.25"]
[EventType "tourn"]
[EventCountry "GER"]
[Tiebreak "Number of wins+Number of black wins"]
[SourceTitle "playchess.com"]
[Source "ChessBase"]
[SourceQuality "1"]
[TimeControl "180+2"]

1. c4 {[%emt 0:00:00]} c5 {[%emt 0:00:00]} 2. g3 {[%emt 0:00:00]} Nf6 {[%emt 0:
00:00]} 3. Bg2 d5 4. cxd5 Nxd5 5. Nc3 {[%emt 0:00:05]} Nc7 {[%emt 0:00:02]} 6.
d3 {[%emt 0:00:01]} Nc6 {[%emt 0:00:03]} 7. Bxc6+ {[%emt 0:00:01]} bxc6 {
[%emt 0:00:01]} 8. Qa4 {[%emt 0:00:03]} Bd7 {[%emt 0:00:01]} 9. Nf3 {[%emt 0:
00:01]} f6 {[%emt 0:00:00]} 10. Be3 {[%emt 0:00:02]} e5 {[%emt 0:00:01]} 11.
Rc1 {[%emt 0:00:01]} Nb5 {[%emt 0:00:25]} 12. Ne4 {[%emt 0:00:11]} Nd4 {
[%emt 0:00:08]} 13. Nfd2 {[%emt 0:00:21]} Qb6 {[%emt 0:00:25]} 14. b3 {[%emt 0:
00:01]} f5 {[%emt 0:00:27]} 15. Nc4 {[%emt 0:00:12]} Qb8 {[%emt 0:00:01]} 16.
Ned2 {[%emt 0:00:21]} Be7 {[%emt 0:00:19]} 17. Na5 {[%emt 0:00:36]} Qb5 {
[%emt 0:00:27]} 18. Ndc4 {[%emt 0:00:22]} Qxa4 {[%emt 0:00:19]} 19. bxa4 {
[%emt 0:00:02]} Bf6 {[%emt 0:00:09]} 20. Kd2 {[%emt 0:00:05]} Rb8 {[%emt 0:00:
23]} 21. Rb1 {[%emt 0:00:01]} Ke7 {[%emt 0:00:01]} 22. Nb7 {[%emt 0:00:06]} Be6
{[%emt 0:00:03]} 23. Nxc5 {[%emt 0:00:07]} Bd5 {[%emt 0:00:01]} 24. f3 {
[%emt 0:00:06]} Rhc8 {[%emt 0:00:13]} 25. Na6 {[%emt 0:00:07]} Rxb1 {[%emt 0:
00:09]} 26. Rxb1 {[%emt 0:00:00]} Ne6 {[%emt 0:00:02]} 27. Rb7+ {[%emt 0:00:08]
} Kf8 {[%emt 0:00:01]} 28. Rxa7 {[%emt 0:00:04]} e4 {[%emt 0:00:01]} 29. fxe4 {
[%emt 0:00:04]} fxe4 {[%emt 0:00:01]} 30. Nc5 {[%emt 0:00:05]} exd3 {[%emt 0:
00:06]} 31. exd3 {[%emt 0:00:02]} Nxc5 {[%emt 0:00:03]} 32. Bxc5+ {[%emt 0:00:
01]} Kg8 {[%emt 0:00:00]} 33. a5 {[%emt 0:00:10]} Rd8 {[%emt 0:00:02]} 34. Kc2
{[%emt 0:00:01]} Bg2 {[%emt 0:00:05]} 35. a6 {[%emt 0:00:10]} Bf1 {[%emt 0:00:
02]} 36. Bd6 {[%emt 0:00:19]} h5 {[%emt 0:00:06]} 37. Rb7 {[%emt 0:00:02]} c5 {
[%emt 0:00:03]} 38. a7 {[%emt 0:00:03]} Bg2 {[%emt 0:00:01]} 39. Rb8 {[%emt 0:
00:01]} Kf7 {[%emt 0:00:01]} 40. Rxd8 {[%emt 0:00:02]} Bxd8 {[%emt 0:00:01]}
41. Bxc5 {[%emt 0:00:03]} Ke6 {[%emt 0:00:02]} 42. Bb6 {[%emt 0:00:02]} Be7 {
[%emt 0:00:01]} 43. a4 {[%emt 0:00:02]} Kd7 {[%emt 0:00:01]} 44. Bd4 {[%emt 0:
00:02]} Bd8 {[%emt 0:00:02]} 45. Bxg7 {[%emt 0:00:01]} Kc8 {[%emt 0:00:03]} 46.
Bd4 {[%emt 0:00:02]} Kb7 {[%emt 0:00:01]} 47. Kd2 {[%emt 0:00:00]} h4 {[%emt 0:
00:02]} 48. gxh4 {[%emt 0:00:03]} Bxh4 {[%emt 0:00:01]} 49. Nd6+ {[%emt 0:00:
01]} Ka8 {[%emt 0:00:00]} 50. Ne4 {[%emt 0:00:02]} Bh3 {[%emt 0:00:03]} 51. Ke3
{[%emt 0:00:01]} Bd8 {[%emt 0:00:01]} 52. Kf4 {[%emt 0:00:01]} Bd7 {[%emt 0:00:
01]} 53. Nf6 {[%emt 0:00:03]} Bxa4 {[%emt 0:00:05]} 54. h4 {[%emt 0:00:02]} Bc2
{[%emt 0:00:01]} 55. Ke3 {[%emt 0:00:02]} Bb3 {[%emt 0:00:02]} 56. h5 {[%emt 0:
00:01]} Bf7 {[%emt 0:00:00]} 57. h6 {[%emt 0:00:00]} Bg6 {[%emt 0:00:01]} 58.
Ne4 {[%emt 0:00:11]} Be7 {[%emt 0:00:03]} 59. Kf4 {[%emt 0:00:01]} Kb7 60. Ke5
{[%emt 0:00:11]} Bf8 {[%emt 0:00:06]} 61. Ke6 {[%emt 0:00:01]} Bxh6 {[%emt 0:
00:02]} 62. Kd6 {[%emt 0:00:03]} Bf8+ {[%emt 0:00:03]} 63. Kd7 {[%emt 0:00:01]}
Ka8 {[%emt 0:00:04]} 64. Bb6 {[%emt 0:00:02]} Bg7 {[%emt 0:00:05]} 65. Nc5 {
[%emt 0:00:03]} Be5 66. Kc6 {[%emt 0:00:01]} Bf5 {[%emt 0:00:05]} 67. Kb5 {
[%emt 0:00:01]} Bg4 {[%emt 0:00:02]} 68. Ne4 {[%emt 0:00:01]} Bd7+ {[%emt 0:00:
01]} 69. Kc5 {[%emt 0:00:01]} Bf5 {[%emt 0:00:02]} 70. Kd5 {[%emt 0:00:01]} Bf4
{[%emt 0:00:01]} 71. d4 {[%emt 0:00:02]} Kb7 {[%emt 0:00:04]} 72. Bc5 {[%emt 0:
00:01]} Ka8 {[%emt 0:00:00]} 73. Nd6 {[%emt 0:00:02]} Bh3 {[%emt 0:00:02]} 74.
Nb5 {[%emt 0:00:01]} Bg2+ {[%emt 0:00:03]} 75. Kc4 {[%emt 0:00:02]} Bf1+ {
[%emt 0:00:01]} 76. Kb4 {[%emt 0:00:00]} Kb7 {[%emt 0:00:05]} 77. Ka4 {[%emt 0:
00:05]} Bg2 {[%emt 0:00:02]} 78. Nc3 {[%emt 0:00:01]} Bc6+ {[%emt 0:00:01]} 79.
Kb4 Ka8 80. d5 {[%emt 0:00:03]} Bd7 {[%emt 0:00:02]} 81. Nb5 {[%emt 0:00:02]}
Kb7 {[%emt 0:00:01]} 82. Ka5 {[%emt 0:00:02]} Bxb5 {[%emt 0:00:03]} 83. Kxb5 {
[%emt 0:00:01]} Bc7 {[%emt 0:00:01]} 84. Bd4 {[%emt 0:00:05]} Bd6 {[%emt 0:00:
01]} 85. Kc4 {[%emt 0:00:02]} Bc7 {[%emt 0:00:01]} 86. Kd3 {[%emt 0:00:01]} Bd6
{[%emt 0:00:01]} 87. Ke4 {[%emt 0:00:01]} Be7 {[%emt 0:00:04]} 88. Kf5 {
[%emt 0:00:01]} Bb4 {[%emt 0:00:03]} 89. Ke6 {[%emt 0:00:01]} Ba3 {[%emt 0:00:
02]} 90. Be3 Bb4 91. Ke5 {[%emt 0:00:05]} Bc3+ {[%emt 0:00:03]} 92. Ke4 {
[%emt 0:00:02]} Bb4 {[%emt 0:00:01]} 93. Kd3 {[%emt 0:00:01]} Bd6 {[%emt 0:00:
00]} 94. Kc4 {[%emt 0:00:01]} Bc7 {[%emt 0:00:03]} 95. Bc5 {[%emt 0:00:02]} Be5
{[%emt 0:00:01]} 96. Kd3 {[%emt 0:00:02]} Bc7 {[%emt 0:00:02]} 97. Ke4 {
[%emt 0:00:01]} Bg3 {[%emt 0:00:02]} 98. Bd4 {[%emt 0:00:01]} Bd6 {[%emt 0:00:
01]} 99. Be5 {[%emt 0:00:02]} Bc5 {[%emt 0:00:02]} 100. Bb8 {[%emt 0:00:01]}
Bb4 {[%emt 0:00:02]} 101. Kf5 {[%emt 0:00:01]} Bc5 {[%emt 0:00:01]} 102. Ke6
Bb4 103. Bd6 {[%emt 0:00:02]} Be1 {[%emt 0:00:04]} 104. Bc5 {[%emt 0:00:03]}
Bg3 {[%emt 0:00:01]} 105. Bd4 {[%emt 0:00:03]} Bf4 {[%emt 0:00:11]} 106. Be5 {
[%emt 0:00:01]} Be3 {[%emt 0:00:04]} 107. d6 {[%emt 0:00:02]} Bxa7 {[%emt 0:00:
02]} 108. d7 {[%emt 0:00:01]} Bb6 {[%emt 0:00:01]} 109. Bd6 {[%emt 0:00:02]}
Kc6 {[%emt 0:00:03]} 110. Bb4 {[%emt 0:00:03]} Bc7 {[%emt 0:00:02]} 111. Ke7 {
[%emt 0:00:01]} Bb6 {[%emt 0:00:01]} 112. Ke8 Bc7 113. Be7 {[%emt 0:00:03]} Bb6
{[%emt 0:00:03]} 114. Bd8 {[%emt 0:00:01]} Bd4 {[%emt 0:00:01]} 115. Be7 {
[%emt 0:00:02]} Bb6 {[%emt 0:00:01]} 116. Bb4 {[%emt 0:00:03]} Bc7 {[%emt 0:00:
01]} 117. Bd2 {[%emt 0:00:04]} Bb6 {[%emt 0:00:01]} 118. Be3 {[%emt 0:00:01]}
Bc7 {[%emt 0:00:00]} 119. Bd4 {[%emt 0:00:02]} Ba5 {[%emt 0:00:01]} 120. Bc3 {
[%emt 0:00:02]} Bc7 {[%emt 0:00:01]} 121. Ke7 {[%emt 0:00:01]} Bb6 {[%emt 0:00:
01]} 122. Bb4 {[%emt 0:00:02]} Bc7 {[%emt 0:00:01]} 123. Ke8 {[%emt 0:00:04]}
Bb6 {[%emt 0:00:01]} 1/2-1/2

[Event "GER-ch Blitz 2019"]
[Site "Magdeburg"]
[Date "2019.05.25"]
[Round "28.12"]
[White "Braeuer, Franz"]
[Black "Braeuning, Rudolf Wilhelm"]
[Result "1-0"]
[ECO "B36"]
[WhiteElo "2445"]
[BlackElo "2285"]
[Annotator "NA"]
[PlyCount "91"]
[EventDate "2019.05.25"]
[EventType "tourn"]
[EventCountry "GER"]
[Tiebreak "Number of wins+Number of black wins"]
[SourceTitle "playchess.com"]
[Source "ChessBase"]
[SourceQuality "1"]
[TimeControl "180+2"]

1. e4 {[%emt 0:00:00]} c5 {[%emt 0:00:00]} 2. Nf3 {[%emt 0:00:00]} g6 {[%emt 0:
00:00]} 3. d4 {[%emt 0:00:00]} cxd4 {[%emt 0:00:01]} 4. Nxd4 {[%emt 0:00:01]}
Nc6 {[%emt 0:00:01]} 5. c4 {[%emt 0:00:01]} Nf6 {[%emt 0:00:01]} 6. Nc3 {
[%emt 0:00:01]} d6 {[%emt 0:00:01]} 7. Be2 {[%emt 0:00:00]} Nxd4 {[%emt 0:00:
01]} 8. Qxd4 {[%emt 0:00:02]} Bg7 {[%emt 0:00:01]} 9. Be3 {[%emt 0:00:06]} O-O
{[%emt 0:00:02]} 10. Qd2 {[%emt 0:00:02]} a5 {[%emt 0:00:01]} 11. f3 {[%emt 0:
00:04]} a4 {[%emt 0:00:01]} 12. Rc1 {[%emt 0:00:01]} Be6 {[%emt 0:00:05]} 13.
Nb5 {[%emt 0:00:05]} Nd7 {[%emt 0:00:14]} 14. Nd4 {[%emt 0:00:02]} Nc5 {
[%emt 0:00:05]} 15. O-O {[%emt 0:00:02]} Qa5 {[%emt 0:00:08]} 16. Rfd1 {
[%emt 0:00:12]} Qxd2 17. Rxd2 {[%emt 0:00:00]} Rfc8 {[%emt 0:00:06]} 18. Kf2 {
[%emt 0:00:26]} Bd7 {[%emt 0:00:13]} 19. Rdc2 {[%emt 0:00:05]} f5 {[%emt 0:00:
08]} 20. exf5 {[%emt 0:00:13]} gxf5 {[%emt 0:00:06]} 21. f4 {[%emt 0:01:00]}
Ne4+ {[%emt 0:00:11]} 22. Kg1 {[%emt 0:00:02]} e5 {[%emt 0:01:18]} 23. Nf3 {
[%emt 0:00:06]} h6 {[%emt 0:00:18]} 24. Rd1 {[%emt 0:00:12]} Be6 {[%emt 0:00:
08]} 25. Nd2 {[%emt 0:00:22]} exf4 {[%emt 0:00:11]} 26. Nxe4 {[%emt 0:00:10]}
fxe3 {[%emt 0:00:02]} 27. Nxd6 {[%emt 0:00:01]} Rc7 {[%emt 0:00:11]} 28. Nb5 {
[%emt 0:00:09]} Re7 29. g3 {[%emt 0:00:10]} Rc8 {[%emt 0:00:08]} 30. Kg2 {
[%emt 0:00:04]} Be5 {[%emt 0:00:08]} 31. b3 {[%emt 0:00:03]} axb3 32. axb3 f4 {
[%emt 0:00:03]} 33. gxf4 {[%emt 0:00:05]} Bxf4 {[%emt 0:00:01]} 34. Bf3 {
[%emt 0:00:03]} Rf8 {[%emt 0:00:03]} 35. Re2 {[%emt 0:00:04]} Rg7+ {[%emt 0:00:
02]} 36. Kh1 {[%emt 0:00:01]} Bg5 {[%emt 0:00:05]} 37. Bd5 {[%emt 0:00:03]}
Bxd5+ {[%emt 0:00:01]} 38. cxd5 {[%emt 0:00:01]} Rf2 {[%emt 0:00:02]} 39. Rde1
{[%emt 0:00:05]} Rd7 {[%emt 0:00:03]} 40. Nc3 {[%emt 0:00:01]} Bd8 {[%emt 0:00:
06]} 41. Ne4 {[%emt 0:00:02]} Rxe2 {[%emt 0:00:02]} 42. Rxe2 {[%emt 0:00:01]}
Rxd5 {[%emt 0:00:00]} 43. Rxe3 {[%emt 0:00:02]} Bb6 {[%emt 0:00:01]} 44. Nf6+ {
[%emt 0:00:02]} Kf7 {[%emt 0:00:02]} 45. Nxd5 {[%emt 0:00:01]} Bxe3 {[%emt 0:
00:01]} 46. Nxe3 {[%emt 0:00:00]} 1-0